[Event "CZE-ch Youth G10-G12-G14 2022"]
[Site "Luhacovice"]
[Date "2022.03.15"]
[Round "5.17"]
[White "Hladka, Leontyna"]
[Black "Vaclavkova Klara"]
[Result "1-0"]
[ECO "C65"]
[WhiteElo "1134"]
[BlackElo "1000"]
[Annotator "NA"]
[PlyCount "61"]
[EventDate "2022.03.12"]
[EventType "swiss"]
[EventCountry "CZE"]
[SourceTitle "playchess.com"]
[Source "ChessBase"]
[SourceQuality "1"]
[TimeControl "40/5400+30:1800+30"]

1. e4 {[%emt 0:00:04]} e5 {[%emt 0:00:04]} 2. Nf3 {[%emt 0:00:07]} Nc6 {[%emt 0:00:17]} 3. Bb5 {[%emt 0:00:16]} Nf6 {[%emt 0:00:25]} 4. d3 {[%emt 0:00:26]} Bc5 {[%emt 0:00:23]} 5. O-O {[%emt 0:00:31]} d6 {[%emt 0:00:08]} 6. c3 {[%emt 0:00:28]} O-O {[%emt 0:00:16]} 7. Bg5 {[%emt 0:06:07]} Bg4 {[%emt 0:00:19]} 8. Nbd2 {[%emt 0:01:06]} h6 {[%emt 0:00:42]} 9. Bh4 {[%emt 0:00:41]} Ne7 {[%emt 0:00:31]} 10. Bxf6 {[%emt 0:01:02]} gxf6 {[%emt 0:00:17]} 11. Nb3 {[%emt 0:08:35]} f5 {[%emt 0:00:32]} 12. h3 {[%emt 0:03:06]} Bh5 {[%emt 0:00:24]} 13. exf5 {[%emt 0:01:05]} Nxf5 {[%emt 0:00:11]} 14. g4 {[%emt 0:01:24]} Ng3 {[%emt 0:00:24]} 15. Re1 {[%emt 0:02:14]} Bb6 {[%emt 0:02:38]} 16. Kg2 {[%emt 0:04:28]} Kh8 {[%emt 0:04:02]} 17. Kxg3 {[%emt 0:03:10]} Rg8 {[%emt 0:00:24]} 18. Qd2 {[%emt 0:01:05]} Qf6 {[%emt 0:01:38]} 19. d4 {[%emt 0:03:50]} Qg6 {[%emt 0:01:00]} 20. Qd3 {[%emt 0:12:37]} f5 {[%emt 0:01:39]} 21. dxe5 {[%emt 0:16:45]} Bxg4 {[%emt 0:06:08]} 22. Kh2 {[%emt 0:00:30]} Qh5 {[%emt 0:00:30]} 23. Nfd4 {[%emt 0:00:30]} f4 {[%emt 0:00:30]} 24. Rg1 {[%emt 0:00:30]} Rg5 {[%emt 0:00:30]} 25. Rg2 {[%emt 0:00:30]} Rag8 {[%emt 0:00:30]} 26. Rag1 {[%emt 0:00:30]} f3 {[%emt 0:00:30]} 27. Rg3 {[%emt 0:00:30]} Bf5 {[%emt 0:00:30]} 28. Qf1 {[%emt 0:00:30]} dxe5 {[%emt 0:00:30]} 29. Nxf5 {[%emt 0:00:30]} c6 {[%emt 0:00:31]} 30. Bc4 {[%emt 0:03:30]} R8g6 {[%emt 0:00:37]} 31. Bf7 {[%emt 0:00:46]} 1-0

[Event "CZE-ch Youth G10-G12-G14 2022"]
[Site "Luhacovice"]
[Date "2022.03.15"]
[Round "5.18"]
[White "Krisicova Neli"]
[Black "Martinkova Klara"]
[Result "0-1"]
[ECO "A01"]
[WhiteElo "1093"]
[BlackElo "1177"]
[Annotator "NA"]
[PlyCount "92"]
[EventDate "2022.03.12"]
[EventType "swiss"]
[EventCountry "CZE"]
[SourceTitle "playchess.com"]
[Source "ChessBase"]
[SourceQuality "1"]
[TimeControl "40/5400+30:1800+30"]

1. b3 {[%emt 0:00:06]} e5 {[%emt 0:00:09]} 2. Bb2 {[%emt 0:00:09]} Nc6 {[%emt 0:00:23]} 3. e3 {[%emt 0:00:17]} Nf6 {[%emt 0:00:32]} 4. Bb5 {[%emt 0:01:00]} Bd6 {[%emt 0:00:16]} 5. d3 {[%emt 0:00:43]} O-O {[%emt 0:01:36]} 6. Nf3 {[%emt 0:01:21]} Qe7 {[%emt 0:02:28]} 7. O-O {[%emt 0:01:18]} a6 {[%emt 0:00:14]} 8. Bxc6 {[%emt 0:00:19]} dxc6 {[%emt 0:00:08]} 9. Nbd2 {[%emt 0:00:54]} Bg4 {[%emt 0:01:48]} 10. c4 {[%emt 0:00:53]} b6 {[%emt 0:07:39]} 11. Qc2 {[%emt 0:01:49]} Rfe8 {[%emt 0:06:43]} 12. Rfe1 {[%emt 0:02:47]} Rad8 {[%emt 0:07:00]} 13. d4 {[%emt 0:04:45]} exd4 {[%emt 0:06:10]} 14. Nxd4 {[%emt 0:03:33]} Qd7 {[%emt 0:02:11]} 15. e4 {[%emt 0:03:04]} Be5 {[%emt 0:03:54]} 16. N4f3 {[%emt 0:02:10]} Bxb2 {[%emt 0:01:29]} 17. Qxb2 {[%emt 0:00:22]} Bxf3 {[%emt 0:00:51]} 18. e5 {[%emt 0:02:20]} Qxd2 {[%emt 0:01:59]} 19. Qxd2 {[%emt 0:00:27]} Rxd2 {[%emt 0:00:09]} 20. exf6 {[%emt 0:01:04]} Rxe1+ {[%emt 0:01:38]} 21. Rxe1 {[%emt 0:00:12]} Rd1 {[%emt 0:00:20]} 22. Rxd1 {[%emt 0:01:07]} Bxd1 {[%emt 0:00:07]} 23. fxg7 {[%emt 0:00:17]} Kxg7 {[%emt 0:00:09]} 24. Kf1 {[%emt 0:00:07]} Bc2 {[%emt 0:00:34]} 25. Ke1 {[%emt 0:00:21]} Bb1 {[%emt 0:00:11]} 26. a3 {[%emt 0:00:08]} Ba2 {[%emt 0:00:08]} 27. b4 {[%emt 0:00:10]} Bxc4 {[%emt 0:00:07]} 28. g3 {[%emt 0:00:08]} a5 {[%emt 0:00:32]} 29. bxa5 {[%emt 0:00:13]} bxa5 {[%emt 0:00:04]} 30. Kd2 {[%emt 0:00:07]} Kf6 {[%emt 0:01:00]} 31. Kc3 {[%emt 0:00:13]} Ba6 {[%emt 0:00:15]} 32. Kd4 {[%emt 0:00:11]} Ke6 {[%emt 0:00:35]} 33. Ke3 {[%emt 0:00:38]} Kd5 {[%emt 0:00:21]} 34. Kd2 {[%emt 0:00:14]} Kd4 {[%emt 0:00:17]} 35. f4 {[%emt 0:00:31]} Bc8 {[%emt 0:00:23]} 36. h4 {[%emt 0:00:35]} Bg4 {[%emt 0:00:22]} 37. a4 {[%emt 0:00:15]} c5 {[%emt 0:00:08]} 38. Kc2 {[%emt 0:00:11]} Kc4 {[%emt 0:00:21]} 39. Kb2 {[%emt 0:00:09]} Kd3 {[%emt 0:00:23]} 40. Kc1 {[%emt 0:00:08]} c4 {[%emt 0:00:25]} 41. Kb2 {[%emt 0:30:06]} Kd2 {[%emt 0:30:11]} 42. Kb1 {[%emt 0:00:10]} c3 {[%emt 0:00:06]} 43. Ka2 {[%emt 0:00:04]} c2 {[%emt 0:00:08]} 44. Ka3 {[%emt 0:00:03]} c1=Q+ {[%emt 0:00:14]} 45. Ka2 {[%emt 0:00:04]} Kc2 {[%emt 0:00:37]} 46. f5 {[%emt 0:00:07]} Qb2# {[%emt 0:00:19]} 0-1

[Event "CZE-ch Youth G10-G12-G14 2022"]
[Site "Luhacovice"]
[Date "2022.03.15"]
[Round "5.19"]
[White "Bouchalova, Kveta"]
[Black "Bartova Hana"]
[Result "0-1"]
[ECO "C30"]
[WhiteElo "1303"]
[BlackElo "1000"]
[Annotator "NA"]
[PlyCount "85"]
[EventDate "2022.03.12"]
[EventType "swiss"]
[EventCountry "CZE"]
[SourceTitle "playchess.com"]
[Source "ChessBase"]
[SourceQuality "1"]
[TimeControl "40/5400+30:1800+30"]

1. e4 {[%emt 0:00:02]} e5 {[%emt 0:00:37]} 2. f4 {[%emt 0:00:05]} Bc5 {[%emt 0:00:24]} 3. Nf3 {[%emt 0:00:17]} d6 {[%emt 0:00:29]} 4. Nc3 {[%emt 0:01:51]} Nf6 {[%emt 0:01:21]} 5. Bc4 {[%emt 0:01:52]} O-O {[%emt 0:01:13]} 6. d3 {[%emt 0:08:16]} Nc6 {[%emt 0:05:24]} 7. Na4 {[%emt 0:04:11]} Bb6 {[%emt 0:06:51]} 8. Nxb6 {[%emt 0:00:29]} axb6 {[%emt 0:00:09]} 9. O-O {[%emt 0:00:16]} Bg4 {[%emt 0:00:30]} 10. Qe1 {[%emt 0:07:11]} Bxf3 {[%emt 0:06:13]} 11. Rxf3 {[%emt 0:02:46]} Nd4 {[%emt 0:00:14]} 12. Rf2 {[%emt 0:00:36]} b5 {[%emt 0:01:28]} 13. c3 {[%emt 0:10:28]} bxc4 {[%emt 0:01:28]} 14. cxd4 {[%emt 0:00:57]} cxd3 {[%emt 0:01:54]} 15. Rf3 {[%emt 0:07:52]} exd4 {[%emt 0:02:27]} 16. Rxd3 {[%emt 0:00:09]} c5 {[%emt 0:02:39]} 17. Kf2 {[%emt 0:13:37]} Re8 {[%emt 0:04:11]} 18. Kf3 {[%emt 0:08:49]} Nxe4 {[%emt 0:04:44]} 19. Qxe4 {[%emt 0:00:13]} Rxe4 {[%emt 0:00:15]} 20. Kxe4 {[%emt 0:00:06]} Qe7+ {[%emt 0:01:29]} 21. Kf3 {[%emt 0:01:09]} f5 {[%emt 0:02:23]} 22. Kg3 {[%emt 0:03:19]} Qe4 {[%emt 0:03:31]} 23. Rb3 {[%emt 0:03:39]} c4 {[%emt 0:02:10]} 24. Rb6 {[%emt 0:01:30]} Rd8 {[%emt 0:02:30]} 25. Kf2 {[%emt 0:00:55]} Qc2+ {[%emt 0:03:55]} 26. Kg3 {[%emt 0:00:50]} Qd1 {[%emt 0:01:13]} 27. Rxb7 {[%emt 0:03:00]} d3 {[%emt 0:02:05]} 28. b4 {[%emt 0:03:59]} d2 {[%emt 0:01:01]} 29. Rxg7+ {[%emt 0:02:07]} Kf8 {[%emt 0:01:35]} 30. Bxd2 {[%emt 0:01:52]} Qxa1 {[%emt 0:00:31]} 31. Rb7 {[%emt 0:00:33]} Qxa2 {[%emt 0:00:56]} 32. Be3 {[%emt 0:00:40]} Re8 {[%emt 0:01:13]} 33. Bd4 {[%emt 0:00:42]} Qb3+ {[%emt 0:01:53]} 34. Kh4 {[%emt 0:00:08]} c3 {[%emt 0:01:33]} 35. Bg7+ {[%emt 0:00:17]} Kg8 {[%emt 0:00:26]} 36. Kg5 {[%emt 0:00:48]} c2 {[%emt 0:01:41]} 37. Bf6 {[%emt 0:01:11]} c1=Q {[%emt 0:02:39]} 38. Rg7+ {[%emt 0:01:45]} Kf8 {[%emt 0:00:25]} 39. Kh6 {[%emt 0:03:06]} Qxf4+ {[%emt 0:00:52]} 40. Kxh7 {[%emt 0:00:07]} Qxh2+ {[%emt 0:00:56]} 41. Kg6 {[%emt 0:30:17]} Qxg2+ {[%emt 0:30:40]} 42. Bg5 {[%emt 0:01:05]} Qe6+ {[%emt 0:00:30]} 43. Kh5 {[%emt 0:01:28]} 0-1

[Event "CZE-ch Youth G10-G12-G14 2022"]
[Site "Luhacovice"]
[Date "2022.03.15"]
[Round "5.20"]
[White "Barteckova, Valerie"]
[Black "Havelkova Kamila"]
[Result "1-0"]
[ECO "D20"]
[WhiteElo "1250"]
[BlackElo "1092"]
[Annotator "NA"]
[PlyCount "91"]
[EventDate "2022.03.12"]
[EventType "swiss"]
[EventCountry "CZE"]
[SourceTitle "playchess.com"]
[Source "ChessBase"]
[SourceQuality "1"]
[TimeControl "40/5400+30:1800+30"]

1. d4 {[%emt 0:00:09]} d5 {[%emt 0:00:25]} 2. c4 {[%emt 0:00:13]} dxc4 {[%emt 0:03:31]} 3. e4 {[%emt 0:00:46]} e5 {[%emt 0:04:05]} 4. d5 {[%emt 0:02:22]} b5 {[%emt 0:03:29]} 5. Nc3 {[%emt 0:02:04]} Bd7 {[%emt 0:02:06]} 6. Nf3 {[%emt 0:00:23]} Bd6 {[%emt 0:01:31]} 7. Be2 {[%emt 0:01:30]} Nf6 {[%emt 0:02:42]} 8. Bg5 {[%emt 0:00:49]} O-O {[%emt 0:01:38]} 9. O-O {[%emt 0:00:30]} c6 {[%emt 0:01:35]} 10. Re1 {[%emt 0:03:51]} Be7 {[%emt 0:04:34]} 11. Nxe5 {[%emt 0:03:23]} Be8 {[%emt 0:02:37]} 12. Nf3 {[%emt 0:02:17]} cxd5 {[%emt 0:03:10]} 13. Nxd5 {[%emt 0:07:26]} Nxd5 {[%emt 0:02:21]} 14. Bxe7 {[%emt 0:02:14]} Qxe7 {[%emt 0:02:42]} 15. exd5 {[%emt 0:00:17]} Qf6 {[%emt 0:05:15]} 16. Qd4 {[%emt 0:02:50]} Qg6 {[%emt 0:04:55]} 17. Ne5 {[%emt 0:01:55]} Qd6 {[%emt 0:03:40]} 18. Rad1 {[%emt 0:04:49]} Na6 {[%emt 0:04:56]} 19. Nc6 {[%emt 0:10:21]} Bxc6 {[%emt 0:05:20]} 20. dxc6 {[%emt 0:00:21]} Qxc6 {[%emt 0:01:45]} 21. Bf3 {[%emt 0:02:05]} Qc8 {[%emt 0:02:09]} 22. Bxa8 {[%emt 0:00:40]} Qxa8 {[%emt 0:01:04]} 23. Re7 {[%emt 0:01:26]} Qb8 {[%emt 0:01:50]} 24. Qxa7 {[%emt 0:03:19]} Qc8 {[%emt 0:04:49]} 25. Qb7 {[%emt 0:09:30]} Qg4 {[%emt 0:01:54]} 26. f3 {[%emt 0:00:54]} Qg5 {[%emt 0:01:13]} 27. Qe4 {[%emt 0:03:11]} Qc5+ {[%emt 0:04:15]} 28. Qe3 {[%emt 0:01:17]} Qc8 {[%emt 0:03:07]} 29. Rdd7 {[%emt 0:08:28]} Nc5 {[%emt 0:02:00]} 30. Rc7 {[%emt 0:01:45]} Qd8 {[%emt 0:01:31]} 31. Rxc5 {[%emt 0:01:58]} Qd1+ {[%emt 0:01:28]} 32. Kf2 {[%emt 0:01:02]} Qd8 {[%emt 0:01:48]} 33. Rce5 {[%emt 0:00:39]} h5 {[%emt 0:00:41]} 34. Re8 {[%emt 0:01:04]} Rxe8 {[%emt 0:01:08]} 35. Rxe8+ {[%emt 0:00:13]} Qxe8 {[%emt 0:00:43]} 36. Qxe8+ {[%emt 0:00:06]} Kh7 {[%emt 0:00:36]} 37. Qxb5 {[%emt 0:00:08]} Kg6 {[%emt 0:01:05]} 38. a4 {[%emt 0:00:13]} f5 {[%emt 0:01:46]} 39. a5 {[%emt 0:00:11]} c3 {[%emt 0:01:01]} 40. bxc3 {[%emt 0:00:11]} Kg5 {[%emt 0:00:49]} 41. a6 {[%emt 0:30:35]} h4 {[%emt 0:31:24]} 42. a7 {[%emt 0:00:17]} h3 {[%emt 0:00:47]} 43. a8=Q {[%emt 0:01:24]} hxg2 {[%emt 0:00:17]} 44. Qd8+ {[%emt 0:00:36]} Kf4 {[%emt 0:00:16]} 45. Qc4+ {[%emt 0:00:10]} Ke5 {[%emt 0:00:23]} 46. f4# {[%emt 0:00:25]} 1-0

[Event "CZE-ch Youth G10-G12-G14 2022"]
[Site "Luhacovice"]
[Date "2022.03.15"]
[Round "5.21"]
[White "Mojzisova Barbora"]
[Black "Stavova, Lucie"]
[Result "0-1"]
[ECO "C66"]
[WhiteElo "1089"]
[BlackElo "1048"]
[Annotator "NA"]
[PlyCount "83"]
[EventDate "2022.03.12"]
[EventType "swiss"]
[EventCountry "CZE"]
[SourceTitle "playchess.com"]
[Source "ChessBase"]
[SourceQuality "1"]
[TimeControl "40/5400+30:1800+30"]

1. e4 {[%emt 0:00:06]} e5 {[%emt 0:00:12]} 2. Nf3 {[%emt 0:00:13]} Nc6 {[%emt 0:00:11]} 3. Nc3 {[%emt 0:01:08]} Nf6 {[%emt 0:02:13]} 4. Bb5 {[%emt 0:01:42]} d6 {[%emt 0:08:58]} 5. d4 {[%emt 0:04:19]} Bd7 {[%emt 0:07:06]} 6. O-O {[%emt 0:07:52]} Be7 {[%emt 0:01:38]} 7. dxe5 {[%emt 0:05:15]} Nxe5 {[%emt 0:04:06]} 8. Nxe5 {[%emt 0:08:01]} dxe5 {[%emt 0:00:17]} 9. Bxd7+ {[%emt 0:04:26]} Qxd7 {[%emt 0:04:37]} 10. Qxd7+ {[%emt 0:02:19]} Nxd7 {[%emt 0:00:56]} 11. Nd5 {[%emt 0:04:11]} Bd6 {[%emt 0:06:40]} 12. b4 {[%emt 0:07:32]} c6 {[%emt 0:02:43]} 13. Ne3 {[%emt 0:02:25]} Bxb4 {[%emt 0:02:39]} 14. Bb2 {[%emt 0:04:02]} O-O {[%emt 0:01:37]} 15. Nc4 {[%emt 0:02:13]} Rfe8 {[%emt 0:02:04]} 16. Rab1 {[%emt 0:05:24]} Bc5 {[%emt 0:04:44]} 17. Rbd1 {[%emt 0:07:34]} Rad8 {[%emt 0:04:20]} 18. Nxe5 {[%emt 0:07:17]} Nxe5 {[%emt 0:02:05]} 19. Rxd8 {[%emt 0:01:32]} Rxd8 {[%emt 0:00:35]} 20. Bxe5 {[%emt 0:00:42]} Re8 {[%emt 0:00:54]} 21. Bb2 {[%emt 0:03:20]} Rxe4 {[%emt 0:00:31]} 22. Rd1 {[%emt 0:01:23]} h6 {[%emt 0:01:26]} 23. Kf1 {[%emt 0:03:12]} Bb4 {[%emt 0:07:08]} 24. c3 {[%emt 0:03:03]} Bc5 {[%emt 0:02:44]} 25. Re1 {[%emt 0:02:32]} Rxe1+ {[%emt 0:01:35]} 26. Kxe1 {[%emt 0:00:25]} Kf8 {[%emt 0:00:11]} 27. Ke2 {[%emt 0:00:28]} Ke7 {[%emt 0:00:08]} 28. f3 {[%emt 0:01:16]} f5 {[%emt 0:02:38]} 29. Kd3 {[%emt 0:01:21]} b5 {[%emt 0:01:11]} 30. c4 {[%emt 0:01:15]} b4 {[%emt 0:01:53]} 31. Bxg7 {[%emt 0:00:52]} h5 {[%emt 0:01:35]} 32. h3 {[%emt 0:01:04]} Kf7 {[%emt 0:00:57]} 33. Bd4 {[%emt 0:00:44]} Bxd4 {[%emt 0:02:16]} 34. Kxd4 {[%emt 0:00:09]} a5 {[%emt 0:02:07]} 35. Kc5 {[%emt 0:01:06]} Ke6 {[%emt 0:00:46]} 36. Kxc6 {[%emt 0:00:00]} a4 {[%emt 0:00:20]} 37. Kb6 {[%emt 0:01:32]} b3 {[%emt 0:00:13]} 38. c5 {[%emt 0:00:20]} bxa2 {[%emt 0:00:31]} 39. c6 {[%emt 0:00:24]} a1=Q {[%emt 0:00:29]} 40. c7 {[%emt 0:00:10]} Qd4+ {[%emt 0:00:32]} 41. Kb7 {[%emt 0:30:28]} Qd7 {[%emt 0:30:21]} 42. Kb6 {[%emt 0:00:20]} 0-1

[Event "CZE-ch Youth G10-G12-G14 2022"]
[Site "Luhacovice"]
[Date "2022.03.15"]
[Round "5.22"]
[White "Pruskova, Justyna"]
[Black "Lukaskova Ellen"]
[Result "0-1"]
[ECO "C49"]
[WhiteElo "1003"]
[BlackElo "1058"]
[Annotator "NA"]
[PlyCount "86"]
[EventDate "2022.03.12"]
[EventType "swiss"]
[EventCountry "CZE"]
[SourceTitle "playchess.com"]
[Source "ChessBase"]
[SourceQuality "1"]
[TimeControl "40/5400+30:1800+30"]

1. e4 {[%emt 0:00:03]} e5 {[%emt 0:00:09]} 2. Nf3 {[%emt 0:00:08]} Nc6 {[%emt 0:00:19]} 3. Nc3 {[%emt 0:00:08]} Nf6 {[%emt 0:00:21]} 4. Bb5 {[%emt 0:00:12]} Bb4 {[%emt 0:00:50]} 5. O-O {[%emt 0:00:57]} d6 {[%emt 0:01:11]} 6. d4 {[%emt 0:03:12]} O-O {[%emt 0:04:49]} 7. Bxc6 {[%emt 0:02:56]} bxc6 {[%emt 0:01:46]} 8. Bg5 {[%emt 0:00:16]} Bg4 {[%emt 0:04:04]} 9. h3 {[%emt 0:02:41]} Bxf3 {[%emt 0:03:45]} 10. Qxf3 {[%emt 0:01:09]} exd4 {[%emt 0:04:45]} 11. Ne2 {[%emt 0:00:39]} Bc5 {[%emt 0:02:09]} 12. Ng3 {[%emt 0:04:10]} h6 {[%emt 0:06:47]} 13. Bxf6 {[%emt 0:00:17]} Qxf6 {[%emt 0:00:32]} 14. Nf5 {[%emt 0:00:46]} Rfe8 {[%emt 0:06:54]} 15. Rfe1 {[%emt 0:02:25]} Bb4 {[%emt 0:01:28]} 16. Red1 {[%emt 0:01:48]} c5 {[%emt 0:02:30]} 17. Qf4 {[%emt 0:03:23]} Qg5 {[%emt 0:01:55]} 18. Qf3 {[%emt 0:01:26]} Qf6 {[%emt 0:04:04]} 19. h4 {[%emt 0:02:00]} Qe5 {[%emt 0:03:09]} 20. Qg4 {[%emt 0:02:15]} Qf6 {[%emt 0:02:29]} 21. Rd3 {[%emt 0:02:27]} Qg6 {[%emt 0:02:25]} 22. Qf4 {[%emt 0:00:43]} Qh7 {[%emt 0:03:05]} 23. Rg3 {[%emt 0:00:56]} g5 {[%emt 0:03:55]} 24. hxg5 {[%emt 0:01:06]} h5 {[%emt 0:02:19]} 25. Nh6+ {[%emt 0:02:59]} Kh8 {[%emt 0:01:41]} 26. Nxf7+ {[%emt 0:04:07]} Kg8 {[%emt 0:00:45]} 27. Qf6 {[%emt 0:05:21]} Qxf7 {[%emt 0:01:18]} 28. Rd1 {[%emt 0:02:43]} Qxf6 {[%emt 0:00:57]} 29. gxf6+ {[%emt 0:00:12]} Kf7 {[%emt 0:00:17]} 30. Rf3 {[%emt 0:00:51]} Rxe4 {[%emt 0:02:03]} 31. Kh2 {[%emt 0:01:21]} Re6 {[%emt 0:01:17]} 32. c3 {[%emt 0:00:41]} dxc3 {[%emt 0:00:34]} 33. bxc3 {[%emt 0:00:21]} Ba5 {[%emt 0:00:44]} 34. Rd5 {[%emt 0:01:48]} Rxf6 {[%emt 0:01:47]} 35. Rxf6+ {[%emt 0:00:28]} Kxf6 {[%emt 0:00:14]} 36. Rxh5 {[%emt 0:00:16]} Bxc3 {[%emt 0:00:13]} 37. g4 {[%emt 0:00:46]} Kg6 {[%emt 0:03:12]} 38. f4 {[%emt 0:00:55]} Rh8 {[%emt 0:01:28]} 39. f5+ {[%emt 0:00:58]} Kf7 {[%emt 0:00:47]} 40. Kg3 {[%emt 0:00:31]} Rxh5 {[%emt 0:00:26]} 41. gxh5 {[%emt 0:30:15]} Kg7 {[%emt 0:30:40]} 42. Kf4 {[%emt 0:01:58]} d5 {[%emt 0:00:30]} 43. Kg5 {[%emt 0:00:30]} Bd2+ {[%emt 0:00:51]} 0-1

[Event "CZE-ch Youth G10-G12-G14 2022"]
[Site "Luhacovice"]
[Date "2022.03.15"]
[Round "5.23"]
[White "Sochorova Valentyna"]
[Black "Kavanova Valentyna"]
[Result "1-0"]
[ECO "C01"]
[WhiteElo "1201"]
[BlackElo "1000"]
[Annotator "NA"]
[PlyCount "105"]
[EventDate "2022.03.12"]
[EventType "swiss"]
[EventCountry "CZE"]
[SourceTitle "playchess.com"]
[Source "ChessBase"]
[SourceQuality "1"]
[TimeControl "40/5400+30:1800+30"]

1. e4 {[%emt 0:00:04]} e6 {[%emt 0:00:02]} 2. d4 {[%emt 0:00:11]} d5 {[%emt 0:00:36]} 3. Bd3 {[%emt 0:00:17]} c5 {[%emt 0:00:33]} 4. exd5 {[%emt 0:00:28]} exd5 {[%emt 0:00:10]} 5. Nf3 {[%emt 0:00:28]} Nc6 {[%emt 0:00:56]} 6. Bb5 {[%emt 0:05:03]} Bd7 {[%emt 0:00:36]} 7. O-O {[%emt 0:00:43]} Nf6 {[%emt 0:00:27]} 8. Bg5 {[%emt 0:02:18]} Be7 {[%emt 0:00:36]} 9. Re1 {[%emt 0:02:31]} O-O {[%emt 0:00:08]} 10. Nc3 {[%emt 0:02:19]} a6 {[%emt 0:01:26]} 11. Bf1 {[%emt 0:04:53]} Re8 {[%emt 0:00:24]} 12. dxc5 {[%emt 0:05:39]} Qa5 {[%emt 0:01:18]} 13. Nxd5 {[%emt 0:15:30]} Nxd5 {[%emt 0:01:06]} 14. Qxd5 {[%emt 0:03:57]} Bxg5 {[%emt 0:00:36]} 15. Rxe8+ {[%emt 0:01:50]} Bxe8 {[%emt 0:02:11]} 16. Nxg5 {[%emt 0:01:20]} b6 {[%emt 0:00:32]} 17. Bc4 {[%emt 0:08:44]} Qxc5 {[%emt 0:01:19]} 18. Qxc5 {[%emt 0:00:56]} bxc5 {[%emt 0:00:06]} 19. Re1 {[%emt 0:01:09]} Kh8 {[%emt 0:01:04]} 20. Nxf7+ {[%emt 0:02:21]} Bxf7 {[%emt 0:00:41]} 21. Bxf7 {[%emt 0:00:23]} h6 {[%emt 0:03:21]} 22. Bg6 {[%emt 0:02:09]} Kg8 {[%emt 0:00:28]} 23. h3 {[%emt 0:00:57]} Kf8 {[%emt 0:00:09]} 24. Be4 {[%emt 0:01:08]} Rc8 {[%emt 0:01:30]} 25. Kf1 {[%emt 0:00:50]} Nb4 {[%emt 0:01:08]} 26. a3 {[%emt 0:00:58]} Nc6 {[%emt 0:00:41]} 27. Ke2 {[%emt 0:01:30]} Nd4+ {[%emt 0:01:59]} 28. Kd2 {[%emt 0:02:25]} Rd8 {[%emt 0:00:46]} 29. Bd3 {[%emt 0:01:36]} Nb5 {[%emt 0:02:10]} 30. c4 {[%emt 0:03:41]} Nc7 {[%emt 0:00:56]} 31. Re5 {[%emt 0:02:31]} Kf7 {[%emt 0:01:41]} 32. Rxc5 {[%emt 0:00:53]} Ne6 {[%emt 0:00:09]} 33. Rd5 {[%emt 0:02:10]} Rxd5 {[%emt 0:00:44]} 34. cxd5 {[%emt 0:00:11]} Nc5 {[%emt 0:00:05]} 35. Bc4 {[%emt 0:01:16]} a5 {[%emt 0:00:13]} 36. Kc3 {[%emt 0:00:50]} Kf6 {[%emt 0:00:37]} 37. Kd4 {[%emt 0:00:26]} Na4 {[%emt 0:00:26]} 38. b3 {[%emt 0:01:21]} Nb6 {[%emt 0:00:35]} 39. a4 {[%emt 0:00:52]} Nxc4 {[%emt 0:00:43]} 40. bxc4 {[%emt 0:00:03]} Ke7 {[%emt 0:00:43]} 41. Ke5 {[%emt 0:30:23]} Kd7 {[%emt 0:30:55]} 42. c5 {[%emt 0:00:14]} g5 {[%emt 0:03:12]} 43. c6+ {[%emt 0:00:44]} Kc7 {[%emt 0:00:05]} 44. d6+ {[%emt 0:00:28]} Kxc6 {[%emt 0:00:09]} 45. Ke6 {[%emt 0:00:09]} Kc5 {[%emt 0:00:13]} 46. d7 {[%emt 0:00:22]} Kb4 {[%emt 0:00:03]} 47. d8=Q {[%emt 0:00:12]} Kxa4 {[%emt 0:00:15]} 48. Qb8 {[%emt 0:01:01]} Ka3 {[%emt 0:03:01]} 49. Kd5 {[%emt 0:00:26]} a4 {[%emt 0:00:09]} 50. Kc4 {[%emt 0:00:08]} Ka2 {[%emt 0:00:06]} 51. Kc3 {[%emt 0:00:14]} a3 {[%emt 0:00:04]} 52. Kc2 {[%emt 0:00:12]} Ka1 {[%emt 0:00:08]} 53. Qb1# {[%emt 0:00:09]} 1-0

[Event "CZE-ch Youth G10-G12-G14 2022"]
[Site "Luhacovice"]
[Date "2022.03.15"]
[Round "5.24"]
[White "Archlebova Eva"]
[Black "Kubatova Beta"]
[Result "0-1"]
[ECO "B50"]
[WhiteElo "1040"]
[BlackElo "1071"]
[Annotator "NA"]
[PlyCount "84"]
[EventDate "2022.03.12"]
[EventType "swiss"]
[EventCountry "CZE"]
[SourceTitle "playchess.com"]
[Source "ChessBase"]
[SourceQuality "1"]
[TimeControl "40/5400+30:1800+30"]

1. e4 {[%emt 0:04:25]} c5 {[%emt 0:00:19]} 2. Nf3 {[%emt 0:00:30]} Nc6 {[%emt 0:00:30]} 3. Bc4 {[%emt 0:00:30]} d6 {[%emt 0:00:30]} 4. Nc3 {[%emt 0:00:30]} Nf6 {[%emt 0:00:30]} 5. d3 {[%emt 0:00:30]} g6 {[%emt 0:00:30]} 6. Bg5 {[%emt 0:00:30]} Bg7 {[%emt 0:00:30]} 7. O-O {[%emt 0:00:30]} O-O {[%emt 0:00:30]} 8. Qd2 {[%emt 0:00:30]} Bd7 {[%emt 0:00:30]} 9. Nd5 {[%emt 0:00:30]} a6 {[%emt 0:00:30]} 10. Nxf6+ {[%emt 0:00:31]} exf6 {[%emt 0:00:54]} 11. Bf4 {[%emt 0:02:35]} Bg4 {[%emt 0:03:25]} 12. Qe3 {[%emt 0:02:18]} f5 {[%emt 0:00:43]} 13. Bd5 {[%emt 0:02:19]} Bxf3 {[%emt 0:01:15]} 14. Qxf3 {[%emt 0:00:17]} fxe4 {[%emt 0:00:07]} 15. Qxe4 {[%emt 0:01:38]} Re8 {[%emt 0:01:09]} 16. Qc4 {[%emt 0:01:33]} Rf8 {[%emt 0:01:12]} 17. Rae1 {[%emt 0:00:44]} Rc8 {[%emt 0:00:52]} 18. Qb3 {[%emt 0:03:20]} b5 {[%emt 0:00:26]} 19. a4 {[%emt 0:00:58]} Nd4 {[%emt 0:00:22]} 20. Qc3 {[%emt 0:06:27]} Ne2+ {[%emt 0:01:31]} 21. Rxe2 {[%emt 0:01:59]} Bxc3 {[%emt 0:00:08]} 22. bxc3 {[%emt 0:00:38]} bxa4 {[%emt 0:00:19]} 23. Re4 {[%emt 0:07:24]} a3 {[%emt 0:00:45]} 24. h3 {[%emt 0:14:09]} Rb8 {[%emt 0:00:30]} 25. d4 {[%emt 0:10:21]} cxd4 {[%emt 0:00:23]} 26. cxd4 {[%emt 0:00:16]} Rb2 {[%emt 0:00:18]} 27. Rfe1 {[%emt 0:14:14]} a2 {[%emt 0:00:36]} 28. Bxa2 {[%emt 0:02:09]} Rxa2 {[%emt 0:00:11]} 29. Bh6 {[%emt 0:00:06]} Rxc2 {[%emt 0:08:32]} 30. d5 {[%emt 0:04:27]} Rc8 {[%emt 0:00:53]} 31. Bxf8 {[%emt 0:01:46]} Qxf8 {[%emt 0:02:34]} 32. f4 {[%emt 0:01:26]} a5 {[%emt 0:00:22]} 33. g4 {[%emt 0:00:14]} Ra8 {[%emt 0:00:18]} 34. h4 {[%emt 0:00:59]} h5 {[%emt 0:00:25]} 35. gxh5 {[%emt 0:00:40]} gxh5 {[%emt 0:00:08]} 36. f5 {[%emt 0:00:10]} Qg7+ {[%emt 0:00:38]} 37. Kh2 {[%emt 0:00:38]} Qb2+ {[%emt 0:00:27]} 38. Kg3 {[%emt 0:00:13]} a4 {[%emt 0:00:31]} 39. Rg1 {[%emt 0:01:00]} Kf8 {[%emt 0:00:58]} 40. Kf4 {[%emt 0:00:21]} Qf2+ {[%emt 0:00:19]} 41. Kg5 {[%emt 0:30:18]} Qxg1+ {[%emt 0:30:16]} 42. Kf6 {[%emt 0:00:13]} Qg7# {[%emt 0:00:14]} 0-1